[Event "Titled Tuesday Blitz August 15 Early 2023"]
[White "Kuznetsov, Felix"]
[Black "Martinez Alcantara, Jose Eduardo"]
[WhiteFideId "34147990"]
[BlackFideId "3805662"]
[WhiteElo "2715"]
[BlackElo "3008"]
[Result "0-1"]
[Round "3"]
[TimeControl "180+1"]
[Date "2023.08.15"]
[WhiteClock "0:00:43"]
[BlackClock "0:01:53"]
[Board "12"]

1. e4 {[%clk 0:03:00]}  c5 {[%clk 0:03:00]} 2. Nf3 {[%clk 0:03:00]}  d6 {[%clk 0:03:00]} 3. d4 {[%clk 0:03:00]}  cxd4 {[%clk 0:03:01]} 4. Nxd4 {[%clk 0:03:01]}  Nf6 {[%clk 0:03:02]} 5. Nc3 {[%clk 0:03:01]}  a6 {[%clk 0:03:02]} 6. Be3 {[%clk 0:03:01]}  e6 {[%clk 0:03:02]} 7. g4 {[%clk 0:02:57]}  h6 {[%clk 0:03:01]} 8. h4 {[%clk 0:02:50]}  b5 {[%clk 0:03:02]} 9. Bg2 {[%clk 0:02:42]}  Bb7 {[%clk 0:03:01]} 10. a3 {[%clk 0:02:41]}  Nfd7 {[%clk 0:03:01]} 11. Qd2 {[%clk 0:02:35]}  Ne5 {[%clk 0:03:00]} 12. Qe2 {[%clk 0:02:32]}  Nbd7 {[%clk 0:02:58]} 13. g5 {[%clk 0:02:13]}  hxg5 {[%clk 0:02:55]} 14. hxg5 {[%clk 0:02:14]}  Rxh1+ {[%clk 0:02:56]} 15. Bxh1 {[%clk 0:02:15]}  Rc8 {[%clk 0:02:45]} 16. f4 {[%clk 0:01:57]}  Nc4 {[%clk 0:02:45]} 17. g6 {[%clk 0:01:56]}  Qh4+ {[%clk 0:02:45]} 18. Qf2 {[%clk 0:01:41]}  Qxh1+ {[%clk 0:02:43]} 19. Ke2 {[%clk 0:01:42]}  Qh5+ {[%clk 0:02:44]} 20. Ke1 {[%clk 0:01:26]}  Qxg6 {[%clk 0:02:42]} 21. f5 {[%clk 0:01:26]}  Qg4 {[%clk 0:02:40]} 22. fxe6 {[%clk 0:01:25]}  fxe6 {[%clk 0:02:41]} 23. Rd1 {[%clk 0:01:21]}  Nde5 {[%clk 0:02:40]} 24. Nce2 {[%clk 0:01:18]}  Be7 {[%clk 0:02:40]} 25. Qh2 {[%clk 0:01:12]}  Bh4+ {[%clk 0:02:40]} 26. Bf2 {[%clk 0:01:12]}  Bxf2+ {[%clk 0:02:31]} 27. Kxf2 {[%clk 0:01:13]}  Kd7 {[%clk 0:02:28]} 28. Rg1 {[%clk 0:01:13]}  Rf8+ {[%clk 0:02:22]} 29. Ke1 {[%clk 0:01:13]}  Nf3+ {[%clk 0:01:53]} 30. Nxf3 {[%clk 0:01:13]}  Qxf3 {[%clk 0:01:54]} 31. Rxg7+ {[%clk 0:01:13]}  Kc8 {[%clk 0:01:54]} 32. Rg1 {[%clk 0:00:43]}  Qe3 {[%clk 0:01:53]} 0-1


[Site "https://www.chess.com"]

[Event "Titled Tuesday Blitz August 15 Early 2023"]
[White "Alex_Sahakyan2006"]
[Black "Kramnik, Vladimir"]
[BlackFideId "4101588"]
[WhiteElo "2700"]
[BlackElo "3006"]
[Result "1-0"]
[Round "3"]
[TimeControl "180+1"]
[Date "2023.08.15"]
[WhiteClock "0:00:20"]
[BlackClock "0:00:00"]
[Board "14"]

1. d4 {[%clk 0:03:00]}  d5 {[%clk 0:02:58]} 2. c4 {[%clk 0:03:00]}  e6 {[%clk 0:02:59]} 3. Nc3 {[%clk 0:02:59]}  Nf6 {[%clk 0:02:58]} 4. Nf3 {[%clk 0:02:59]}  Nbd7 {[%clk 0:02:57]} 5. cxd5 {[%clk 0:02:52]}  exd5 {[%clk 0:02:57]} 6. Bf4 {[%clk 0:02:52]}  c6 {[%clk 0:02:55]} 7. e3 {[%clk 0:02:52]}  Nh5 {[%clk 0:02:55]} 8. Bg5 {[%clk 0:02:49]}  Be7 {[%clk 0:02:55]} 9. Bxe7 {[%clk 0:02:49]}  Qxe7 {[%clk 0:02:55]} 10. Be2 {[%clk 0:02:49]}  O-O {[%clk 0:02:53]} 11. O-O {[%clk 0:02:49]}  g6 {[%clk 0:02:52]} 12. a3 {[%clk 0:02:48]}  a5 {[%clk 0:02:50]} 13. Rb1 {[%clk 0:02:48]}  Nb6 {[%clk 0:02:37]} 14. b4 {[%clk 0:02:34]}  axb4 {[%clk 0:02:33]} 15. axb4 {[%clk 0:02:35]}  Bf5 {[%clk 0:02:25]} 16. Rb3 {[%clk 0:02:16]}  Nf6 {[%clk 0:02:06]} 17. b5 {[%clk 0:02:14]}  Nc4 {[%clk 0:02:02]} 18. bxc6 {[%clk 0:02:13]}  bxc6 {[%clk 0:02:03]} 19. Nd2 {[%clk 0:02:00]}  Nd6 {[%clk 0:01:52]} 20. Nf3 {[%clk 0:01:44]}  h5 {[%clk 0:01:35]} 21. Ne5 {[%clk 0:01:44]}  Rfc8 {[%clk 0:01:32]} 22. Nd3 {[%clk 0:01:12]}  Ng4 {[%clk 0:01:22]} 23. Nc5 {[%clk 0:00:52]}  Qh4 {[%clk 0:01:15]} 24. h3 {[%clk 0:00:52]}  Nf6 {[%clk 0:01:15]} 25. Bd3 {[%clk 0:00:38]}  Bxh3 {[%clk 0:00:59]} 26. gxh3 {[%clk 0:00:35]}  Qxh3 {[%clk 0:01:00]} 27. Be2 {[%clk 0:00:35]}  Ng4 {[%clk 0:00:48]} 28. Bxg4 {[%clk 0:00:33]}  hxg4 {[%clk 0:00:49]} 29. Ne2 {[%clk 0:00:32]}  Kg7 {[%clk 0:00:33]} 30. Nf4 {[%clk 0:00:32]}  Qf3 {[%clk 0:00:33]} 31. Qxf3 {[%clk 0:00:22]}  gxf3 {[%clk 0:00:33]} 32. Kh2 {[%clk 0:00:23]}  Nf5 {[%clk 0:00:31]} 33. Kh3 {[%clk 0:00:23]}  g5 {[%clk 0:00:22]} 34. Nfd3 {[%clk 0:00:21]}  Nh6 {[%clk 0:00:16]} 35. Kg3 {[%clk 0:00:20]}  g4 {[%clk 0:00:16]} 36. Ne5 {[%clk 0:00:20]}  Rg8 {[%clk 0:00:10]} 37. Rb7 {[%clk 0:00:19]}  Kf6 {[%clk 0:00:06]} 38. Rh1 {[%clk 0:00:20]}  Nf5+ {[%clk 0:00:00]} 39. Kf4 {[%clk 0:00:20]} 1-0


[Site "https://www.chess.com"]

[Event "Titled Tuesday Blitz August 15 Early 2023"]
[White "Drygalov, Sergey"]
[Black "Gorovets, Andrey"]
[WhiteFideId "24171743"]
[BlackFideId "13504037"]
[WhiteElo "3005"]
[BlackElo "2696"]
[Result "1-0"]
[Round "3"]
[TimeControl "180+1"]
[Date "2023.08.15"]
[WhiteClock "0:01:16"]
[BlackClock "0:00:06"]
[Board "15"]

1. d4 {[%clk 0:03:00]}  Nf6 {[%clk 0:02:59]} 2. c4 {[%clk 0:03:01]}  e6 {[%clk 0:02:59]} 3. Nf3 {[%clk 0:03:02]}  d5 {[%clk 0:02:59]} 4. Nc3 {[%clk 0:03:02]}  dxc4 {[%clk 0:02:56]} 5. e4 {[%clk 0:03:02]}  b5 {[%clk 0:02:54]} 6. e5 {[%clk 0:03:02]}  Nd5 {[%clk 0:02:54]} 7. Nxb5 {[%clk 0:03:03]}  Nb6 {[%clk 0:02:53]} 8. Be2 {[%clk 0:03:02]}  Be7 {[%clk 0:02:47]} 9. Be3 {[%clk 0:03:02]}  O-O {[%clk 0:02:39]} 10. h4 {[%clk 0:03:00]}  Nc6 {[%clk 0:02:32]} 11. a3 {[%clk 0:02:59]}  Ba6 {[%clk 0:02:25]} 12. Nc3 {[%clk 0:02:59]}  Nd5 {[%clk 0:02:25]} 13. Qc2 {[%clk 0:02:56]}  Nxe3 {[%clk 0:02:08]} 14. fxe3 {[%clk 0:02:57]}  Na5 {[%clk 0:01:58]} 15. Rd1 {[%clk 0:02:49]}  Rb8 {[%clk 0:01:54]} 16. d5 {[%clk 0:02:45]}  Bc5 {[%clk 0:01:45]} 17. Ng5 {[%clk 0:02:44]}  g6 {[%clk 0:01:43]} 18. Nce4 {[%clk 0:02:40]}  Bxe3 {[%clk 0:01:37]} 19. Nf6+ {[%clk 0:02:35]}  Kg7 {[%clk 0:01:37]} 20. Ngxh7 {[%clk 0:02:32]}  Nb3 {[%clk 0:01:21]} 21. h5 {[%clk 0:02:24]}  Nd4 {[%clk 0:01:02]} 22. Qe4 {[%clk 0:02:17]}  Rxb2 {[%clk 0:01:01]} 23. Rxd4 {[%clk 0:01:45]}  Bxd4 {[%clk 0:01:01]} 24. Qxd4 {[%clk 0:01:45]}  Rb1+ {[%clk 0:01:00]} 25. Bd1 {[%clk 0:01:43]}  c6 {[%clk 0:00:47]} 26. hxg6 {[%clk 0:01:28]}  Qa5+ {[%clk 0:00:42]} 27. Kf2 {[%clk 0:01:27]}  fxg6 {[%clk 0:00:28]} 28. Qe3 {[%clk 0:01:17]}  Rb2+ {[%clk 0:00:25]} 29. Kg3 {[%clk 0:01:16]}  Rh8 {[%clk 0:00:12]} 30. Qh6+ {[%clk 0:01:15]}  Kf7 {[%clk 0:00:13]} 31. Ng5+ {[%clk 0:01:15]}  Ke7 {[%clk 0:00:06]} 32. Qg7+ {[%clk 0:01:16]} 1-0


[Site "https://www.chess.com"]

[Event "Titled Tuesday Blitz August 15 Early 2023"]
[White "ChainedDowntohell"]
[Black "Sadhwani, Raunak"]
[BlackFideId "35093487"]
[WhiteElo "2686"]
[BlackElo "2994"]
[Result "0-1"]
[Round "3"]
[TimeControl "180+1"]
[Date "2023.08.15"]
[WhiteClock "0:00:00"]
[BlackClock "0:00:29"]
[Board "17"]

1. d4 {[%clk 0:02:59]}  Nf6 {[%clk 0:02:58]} 2. Nf3 {[%clk 0:02:59]}  g6 {[%clk 0:02:56]} 3. Bg5 {[%clk 0:02:59]}  Bg7 {[%clk 0:02:57]} 4. c3 {[%clk 0:02:58]}  O-O {[%clk 0:02:57]} 5. Nbd2 {[%clk 0:02:58]}  d6 {[%clk 0:02:55]} 6. e3 {[%clk 0:02:58]}  b6 {[%clk 0:02:53]} 7. a4 {[%clk 0:02:56]}  a6 {[%clk 0:02:49]} 8. a5 {[%clk 0:02:38]}  b5 {[%clk 0:02:46]} 9. c4 {[%clk 0:02:38]}  bxc4 {[%clk 0:02:46]} 10. Bxc4 {[%clk 0:02:37]}  Bb7 {[%clk 0:02:47]} 11. O-O {[%clk 0:02:35]}  Nbd7 {[%clk 0:02:46]} 12. Qe2 {[%clk 0:02:15]}  c5 {[%clk 0:02:35]} 13. Rfc1 {[%clk 0:01:36]}  Qb8 {[%clk 0:02:24]} 14. Bd3 {[%clk 0:01:25]}  Rc8 {[%clk 0:02:16]} 15. Rab1 {[%clk 0:01:15]}  cxd4 {[%clk 0:02:12]} 16. exd4 {[%clk 0:01:14]}  Nd5 {[%clk 0:02:10]} 17. Nc4 {[%clk 0:01:09]}  N7f6 {[%clk 0:02:07]} 18. b4 {[%clk 0:01:06]}  h6 {[%clk 0:01:59]} 19. Bd2 {[%clk 0:01:06]}  Bc6 {[%clk 0:01:54]} 20. Na3 {[%clk 0:00:38]}  Qb7 {[%clk 0:01:37]} 21. h3 {[%clk 0:00:34]}  g5 {[%clk 0:01:26]} 22. b5 {[%clk 0:00:33]}  axb5 {[%clk 0:01:26]} 23. Nxb5 {[%clk 0:00:31]}  Qd7 {[%clk 0:01:25]} 24. Na3 {[%clk 0:00:21]}  Nh5 {[%clk 0:01:08]} 25. Qd1 {[%clk 0:00:11]}  Nhf4 {[%clk 0:01:07]} 26. Bf1 {[%clk 0:00:11]}  Ne6 {[%clk 0:01:02]} 27. Nc4 {[%clk 0:00:06]}  Rcb8 {[%clk 0:00:36]} 28. Rxb8+ {[%clk 0:00:03]}  Rxb8 {[%clk 0:00:36]} 29. Be1 {[%clk 0:00:02]}  Nef4 {[%clk 0:00:31]} 30. a6 {[%clk 0:00:01]}  Ba8 {[%clk 0:00:29]} 31. Ra1 {[%clk 0:00:00]}  g4 {[%clk 0:00:29]} 0-1


[Site "https://www.chess.com"]

[Event "Titled Tuesday Blitz August 15 Early 2023"]
[White "Le, Tuan Minh"]
[Black "Maltsevskaya, Aleksandra"]
[WhiteFideId "12401153"]
[BlackFideId "24174041"]
[WhiteElo "2988"]
[BlackElo "2686"]
[Result "1-0"]
[Round "3"]
[TimeControl "180+1"]
[Date "2023.08.15"]
[WhiteClock "0:00:25"]
[BlackClock "0:00:00"]
[Board "18"]

1. d4 {[%clk 0:02:43]}  Nf6 {[%clk 0:02:58]} 2. Nf3 {[%clk 0:02:43]}  g6 {[%clk 0:02:56]} 3. Bg5 {[%clk 0:02:43]}  Bg7 {[%clk 0:02:56]} 4. Nbd2 {[%clk 0:02:44]}  O-O {[%clk 0:02:57]} 5. c3 {[%clk 0:02:44]}  d6 {[%clk 0:02:57]} 6. e4 {[%clk 0:02:45]}  Nbd7 {[%clk 0:02:58]} 7. Bc4 {[%clk 0:02:45]}  e5 {[%clk 0:02:57]} 8. O-O {[%clk 0:02:45]}  c6 {[%clk 0:02:55]} 9. Re1 {[%clk 0:02:45]}  b5 {[%clk 0:02:54]} 10. Bb3 {[%clk 0:02:41]}  a6 {[%clk 0:02:52]} 11. Nf1 {[%clk 0:02:40]}  Qe7 {[%clk 0:02:52]} 12. Ng3 {[%clk 0:02:40]}  Bb7 {[%clk 0:02:51]} 13. Qd2 {[%clk 0:02:38]}  c5 {[%clk 0:02:52]} 14. Rad1 {[%clk 0:02:36]}  c4 {[%clk 0:02:38]} 15. Bc2 {[%clk 0:02:35]}  Rad8 {[%clk 0:02:32]} 16. a4 {[%clk 0:02:31]}  Rfe8 {[%clk 0:02:29]} 17. h4 {[%clk 0:02:24]}  Qf8 {[%clk 0:01:58]} 18. Ra1 {[%clk 0:01:01]}  h6 {[%clk 0:01:56]} 19. Be3 {[%clk 0:01:01]}  exd4 {[%clk 0:01:17]} 20. Nxd4 {[%clk 0:00:47]}  Nxe4 {[%clk 0:01:10]} 21. Nxe4 {[%clk 0:00:47]}  Bxe4 {[%clk 0:01:11]} 22. Bxe4 {[%clk 0:00:47]}  Rxe4 {[%clk 0:01:12]} 23. axb5 {[%clk 0:00:48]}  axb5 {[%clk 0:01:12]} 24. Nxb5 {[%clk 0:00:48]}  Ne5 {[%clk 0:01:03]} 25. h5 {[%clk 0:00:43]}  gxh5 {[%clk 0:00:58]} 26. Qd5 {[%clk 0:00:41]}  Rg4 {[%clk 0:00:56]} 27. Ra7 {[%clk 0:00:37]}  h4 {[%clk 0:00:23]} 28. Kh1 {[%clk 0:00:36]}  Nd3 {[%clk 0:00:18]} 29. Rf1 {[%clk 0:00:33]}  Be5 {[%clk 0:00:18]} 30. Nd4 {[%clk 0:00:29]}  Bxd4 {[%clk 0:00:10]} 31. Bxd4 {[%clk 0:00:29]}  Qe8 {[%clk 0:00:00]} 32. Qxc4 {[%clk 0:00:25]} 1-0


[Site "https://www.chess.com"]

[Event "Titled Tuesday Blitz August 15 Early 2023"]
[White "Makhnev, Denis"]
[Black "Kushko, Dmitriy"]
[WhiteFideId "13707647"]
[BlackFideId "14162261"]
[WhiteElo "2962"]
[BlackElo "2677"]
[Result "0-1"]
[Round "3"]
[TimeControl "180+1"]
[Date "2023.08.15"]
[WhiteClock "0:00:07"]
[BlackClock "0:00:30"]
[Board "21"]

1. d4 {[%clk 0:03:00]}  g6 {[%clk 0:03:00]} 2. Nc3 {[%clk 0:02:57]}  Bg7 {[%clk 0:03:00]} 3. e4 {[%clk 0:02:58]}  d6 {[%clk 0:03:00]} 4. Be3 {[%clk 0:02:56]}  a6 {[%clk 0:02:59]} 5. Qd2 {[%clk 0:02:55]}  b5 {[%clk 0:02:59]} 6. f3 {[%clk 0:02:55]}  Nd7 {[%clk 0:02:59]} 7. O-O-O {[%clk 0:02:54]}  Bb7 {[%clk 0:02:59]} 8. h4 {[%clk 0:02:52]}  h6 {[%clk 0:03:00]} 9. Kb1 {[%clk 0:02:50]}  e6 {[%clk 0:03:00]} 10. Nh3 {[%clk 0:02:45]}  Ne7 {[%clk 0:03:00]} 11. g4 {[%clk 0:02:44]}  c5 {[%clk 0:02:59]} 12. Nf2 {[%clk 0:02:34]}  Qc7 {[%clk 0:02:55]} 13. f4 {[%clk 0:02:24]}  Nc6 {[%clk 0:02:29]} 14. dxc5 {[%clk 0:02:11]}  dxc5 {[%clk 0:02:29]} 15. e5 {[%clk 0:02:10]}  Nd4 {[%clk 0:02:21]} 16. Nce4 {[%clk 0:02:08]}  O-O {[%clk 0:02:00]} 17. c3 {[%clk 0:02:07]}  f5 {[%clk 0:01:23]} 18. exf6 {[%clk 0:01:58]}  Nxf6 {[%clk 0:01:23]} 19. Nxf6+ {[%clk 0:01:58]}  Bxf6 {[%clk 0:01:23]} 20. g5 {[%clk 0:01:32]}  hxg5 {[%clk 0:01:06]} 21. hxg5 {[%clk 0:01:30]}  Bxh1 {[%clk 0:00:39]} 22. Nxh1 {[%clk 0:01:23]}  Nf5 {[%clk 0:00:38]} 23. gxf6 {[%clk 0:01:13]}  Rad8 {[%clk 0:00:38]} 24. Bd3 {[%clk 0:01:13]}  c4 {[%clk 0:00:38]} 25. Qg2 {[%clk 0:01:11]}  Rxd3 {[%clk 0:00:33]} 26. Qxg6+ {[%clk 0:00:19]}  Kh8 {[%clk 0:00:33]} 27. Bd2 {[%clk 0:00:20]}  Qh7 {[%clk 0:00:33]} 28. Qg2 {[%clk 0:00:19]}  Ne3 {[%clk 0:00:30]} 29. Qe2 {[%clk 0:00:07]}  Rxd2+ {[%clk 0:00:30]} 0-1


[Site "https://www.chess.com"]

[Event "Titled Tuesday Blitz August 15 Early 2023"]
[White "Parkhov, Yair"]
[Black "Hakobyan, Aram"]
[WhiteFideId "2813408"]
[BlackFideId "13306677"]
[WhiteElo "2666"]
[BlackElo "2962"]
[Result "0-1"]
[Round "3"]
[TimeControl "180+1"]
[Date "2023.08.15"]
[WhiteClock "0:00:00"]
[BlackClock "0:00:37"]
[Board "22"]

1. d4 {[%clk 0:03:00]}  Nf6 {[%clk 0:02:58]} 2. Nc3 {[%clk 0:03:01]}  d5 {[%clk 0:02:57]} 3. Bf4 {[%clk 0:03:01]}  c5 {[%clk 0:02:58]} 4. e3 {[%clk 0:03:01]}  cxd4 {[%clk 0:02:57]} 5. exd4 {[%clk 0:03:01]}  a6 {[%clk 0:02:57]} 6. Nf3 {[%clk 0:02:58]}  Nc6 {[%clk 0:02:57]} 7. Be2 {[%clk 0:02:53]}  Bg4 {[%clk 0:02:56]} 8. Ne5 {[%clk 0:02:48]}  Bxe2 {[%clk 0:02:56]} 9. Nxe2 {[%clk 0:02:49]}  e6 {[%clk 0:02:48]} 10. c3 {[%clk 0:02:49]}  Bd6 {[%clk 0:02:43]} 11. O-O {[%clk 0:02:43]}  Qc7 {[%clk 0:02:41]} 12. Nd3 {[%clk 0:02:30]}  O-O {[%clk 0:02:39]} 13. Bxd6 {[%clk 0:02:26]}  Qxd6 {[%clk 0:02:39]} 14. Qd2 {[%clk 0:02:22]}  Ne4 {[%clk 0:02:33]} 15. Qf4 {[%clk 0:02:21]}  Qxf4 {[%clk 0:02:33]} 16. Nexf4 {[%clk 0:02:20]}  Rfc8 {[%clk 0:02:33]} 17. f3 {[%clk 0:02:18]}  Nd6 {[%clk 0:02:31]} 18. h4 {[%clk 0:02:06]}  b5 {[%clk 0:02:26]} 19. a3 {[%clk 0:01:59]}  a5 {[%clk 0:02:23]} 20. Nc5 {[%clk 0:01:52]}  Nc4 {[%clk 0:02:14]} 21. Nfd3 {[%clk 0:01:48]}  h5 {[%clk 0:02:10]} 22. Kf2 {[%clk 0:01:46]}  b4 {[%clk 0:02:04]} 23. axb4 {[%clk 0:01:44]}  axb4 {[%clk 0:02:04]} 24. Nxb4 {[%clk 0:01:38]}  Nxb4 {[%clk 0:02:03]} 25. cxb4 {[%clk 0:01:38]}  Rab8 {[%clk 0:01:44]} 26. b3 {[%clk 0:01:33]}  Nd6 {[%clk 0:01:44]} 27. Ra4 {[%clk 0:01:06]}  Nb5 {[%clk 0:01:44]} 28. Ke3 {[%clk 0:00:27]}  Nc3 {[%clk 0:01:39]} 29. Ra5 {[%clk 0:00:19]}  Rxb4 {[%clk 0:01:37]} 30. Rc1 {[%clk 0:00:18]}  Nb5 {[%clk 0:01:33]} 31. Ra4 {[%clk 0:00:18]}  Rxa4 {[%clk 0:01:28]} 32. bxa4 {[%clk 0:00:19]}  Nd6 {[%clk 0:01:29]} 33. Ra1 {[%clk 0:00:16]}  e5 {[%clk 0:01:20]} 34. Kd3 {[%clk 0:00:14]}  Nf5 {[%clk 0:01:15]} 35. Nb3 {[%clk 0:00:13]}  Rb8 {[%clk 0:01:13]} 36. Kc3 {[%clk 0:00:13]}  e4 {[%clk 0:01:09]} 37. a5 {[%clk 0:00:12]}  Nd6 {[%clk 0:01:03]} 38. a6 {[%clk 0:00:11]}  Nb5+ {[%clk 0:01:04]} 39. Kd2 {[%clk 0:00:07]}  Na7 {[%clk 0:00:58]} 40. Nc5 {[%clk 0:00:07]}  exf3 {[%clk 0:00:53]} 41. gxf3 {[%clk 0:00:07]}  g6 {[%clk 0:00:46]} 42. Re1 {[%clk 0:00:07]}  Nc6 {[%clk 0:00:46]} 43. Rf1 {[%clk 0:00:06]}  Rb4 {[%clk 0:00:44]} 44. Ra1 {[%clk 0:00:04]}  Rxd4+ {[%clk 0:00:43]} 45. Ke3 {[%clk 0:00:04]}  Rc4 {[%clk 0:00:44]} 46. Nb7 {[%clk 0:00:04]}  Na7 {[%clk 0:00:42]} 47. Nd6 {[%clk 0:00:04]}  Rxh4 {[%clk 0:00:41]} 48. Rb1 {[%clk 0:00:04]}  Ra4 {[%clk 0:00:41]} 49. Rb7 {[%clk 0:00:04]}  Rxa6 {[%clk 0:00:41]} 50. Nxf7 {[%clk 0:00:04]}  Nc6 {[%clk 0:00:39]} 51. Nh6+ {[%clk 0:00:03]}  Kf8 {[%clk 0:00:40]} 52. Rf7+ {[%clk 0:00:03]}  Ke8 {[%clk 0:00:41]} 53. Rg7 {[%clk 0:00:04]}  Ne7 {[%clk 0:00:37]} 54. Ng8 {[%clk 0:00:00]}  Nf5+ {[%clk 0:00:37]} 0-1


[Site "https://www.chess.com"]

[Event "Titled Tuesday Blitz August 15 Early 2023"]
[White "Iskusnyh, Sergei"]
[Black "Terry, Renato"]
[WhiteFideId "4120027"]
[BlackFideId "3803457"]
[WhiteElo "2651"]
[BlackElo "2926"]
[Result "0-1"]
[Round "3"]
[TimeControl "180+1"]
[Date "2023.08.15"]
[WhiteClock "0:00:00"]
[BlackClock "0:00:22"]
[Board "25"]

1. d4 {[%clk 0:03:00]}  e6 {[%clk 0:03:00]} 2. c4 {[%clk 0:03:00]}  Bb4+ {[%clk 0:02:59]} 3. Bd2 {[%clk 0:02:59]}  Bxd2+ {[%clk 0:02:58]} 4. Qxd2 {[%clk 0:02:58]}  Nf6 {[%clk 0:02:59]} 5. g3 {[%clk 0:02:57]}  d6 {[%clk 0:03:00]} 6. Bg2 {[%clk 0:02:57]}  O-O {[%clk 0:03:01]} 7. Nf3 {[%clk 0:02:57]}  Qe7 {[%clk 0:03:01]} 8. Nc3 {[%clk 0:02:56]}  e5 {[%clk 0:03:01]} 9. O-O {[%clk 0:02:54]}  c6 {[%clk 0:02:59]} 10. e4 {[%clk 0:02:46]}  Bg4 {[%clk 0:02:59]} 11. Rfe1 {[%clk 0:02:34]}  Bxf3 {[%clk 0:02:59]} 12. Bxf3 {[%clk 0:02:34]}  c5 {[%clk 0:02:53]} 13. d5 {[%clk 0:02:15]}  Nbd7 {[%clk 0:02:51]} 14. Rab1 {[%clk 0:02:11]}  g6 {[%clk 0:02:38]} 15. a3 {[%clk 0:02:10]}  Rac8 {[%clk 0:02:33]} 16. Qd3 {[%clk 0:02:03]}  Kg7 {[%clk 0:02:29]} 17. b4 {[%clk 0:02:02]}  cxb4 {[%clk 0:02:21]} 18. axb4 {[%clk 0:02:02]}  Nb6 {[%clk 0:02:22]} 19. Ra1 {[%clk 0:01:22]}  Rxc4 {[%clk 0:02:07]} 20. Rxa7 {[%clk 0:01:20]}  Rfc8 {[%clk 0:01:58]} 21. Ne2 {[%clk 0:00:56]}  Rxb4 {[%clk 0:01:49]} 22. Rb1 {[%clk 0:00:53]}  Rxb1+ {[%clk 0:01:47]} 23. Qxb1 {[%clk 0:00:52]}  Qc7 {[%clk 0:01:46]} 24. h4 {[%clk 0:00:49]}  Ra8 {[%clk 0:01:40]} 25. Rxa8 {[%clk 0:00:46]}  Nxa8 {[%clk 0:01:41]} 26. Qb4 {[%clk 0:00:43]}  Nb6 {[%clk 0:01:37]} 27. h5 {[%clk 0:00:35]}  Qc5 {[%clk 0:01:25]} 28. Qd2 {[%clk 0:00:29]}  h6 {[%clk 0:01:24]} 29. hxg6 {[%clk 0:00:29]}  fxg6 {[%clk 0:01:25]} 30. Qb2 {[%clk 0:00:25]}  Qc7 {[%clk 0:01:17]} 31. Kg2 {[%clk 0:00:22]}  Nc4 {[%clk 0:01:14]} 32. Qc3 {[%clk 0:00:18]}  Qc5 {[%clk 0:01:14]} 33. Qb3 {[%clk 0:00:15]}  b5 {[%clk 0:01:05]} 34. Qa2 {[%clk 0:00:15]}  Qa3 {[%clk 0:01:01]} 35. Qc2 {[%clk 0:00:15]}  Qb2 {[%clk 0:00:45]} 36. Qd3 {[%clk 0:00:15]}  h5 {[%clk 0:00:42]} 37. Nc3 {[%clk 0:00:13]}  Qb3 {[%clk 0:00:34]} 38. Be2 {[%clk 0:00:10]}  Nd7 {[%clk 0:00:35]} 39. Nxb5 {[%clk 0:00:09]}  Qxb5 {[%clk 0:00:35]} 40. Qxc4 {[%clk 0:00:07]}  Qb8 {[%clk 0:00:35]} 41. Qc6 {[%clk 0:00:07]}  Nc5 {[%clk 0:00:36]} 42. Bb5 {[%clk 0:00:05]}  Nxe4 {[%clk 0:00:33]} 43. Qd7+ {[%clk 0:00:05]}  Kh6 {[%clk 0:00:34]} 44. Bd3 {[%clk 0:00:05]}  Nc5 {[%clk 0:00:34]} 45. Qb5 {[%clk 0:00:02]}  Qf8 {[%clk 0:00:32]} 46. Qb4 {[%clk 0:00:01]}  Nxd3 {[%clk 0:00:31]} 47. Qd2+ {[%clk 0:00:02]}  Nf4+ {[%clk 0:00:31]} 48. gxf4 {[%clk 0:00:02]}  Qxf4 {[%clk 0:00:32]} 49. Qa5 {[%clk 0:00:02]}  h4 {[%clk 0:00:28]} 50. Qd8 {[%clk 0:00:02]}  Qg4+ {[%clk 0:00:27]} 51. Kf1 {[%clk 0:00:01]}  Qd1+ {[%clk 0:00:27]} 52. Kg2 {[%clk 0:00:02]}  Qxd5+ {[%clk 0:00:28]} 53. Kh2 {[%clk 0:00:02]}  Qd4 {[%clk 0:00:26]} 54. Qh8+ {[%clk 0:00:01]}  Kg5 {[%clk 0:00:27]} 55. Qd8+ {[%clk 0:00:02]}  Kf5 {[%clk 0:00:28]} 56. Qf8+ {[%clk 0:00:02]}  Ke4 {[%clk 0:00:27]} 57. Qf7 {[%clk 0:00:02]}  g5 {[%clk 0:00:22]} 58. Qg6+ {[%clk 0:00:01]}  Kf3 {[%clk 0:00:22]} 59. Qf5+ {[%clk 0:00:01]}  Qf4+ {[%clk 0:00:22]} 60. Kh1 {[%clk 0:00:00]}  Qxf5 {[%clk 0:00:22]} 0-1


[Site "https://www.chess.com"]